fUSD/lending_fUSD_20241107
["ID","MTS","AMOUNT","RATE_DAILY","PERIOD"]
[341605298,1731022251898,-752.78918257,0.0002767,4]
[341605299,1731022252322,-500.0,0.00027397,2]
[341605300,1731022252332,-220.90318026,0.0002757,2]
[341605301,1731022252342,-795.59386974,0.0002767,4]
[341605302,1731022252354,-368.95127601,0.0002767,4]
[341605303,1731022252981,-500.0,0.00027397,2]
[341605304,1731022252991,-660.96594407,0.0002767,4]
[341605305,1731022253006,-176786.24766252,0.0002767,4]
[341605306,1731022253635,-500.0,0.00027397,2]
[341605307,1731022253644,-3520.14327242,0.0002767,4]
[341605308,1731022253655,-317.60999148,0.0002767,4]
[341605309,1731022253876,-16736.07293889,0.0002767,4]
[341605310,1731022261190,174.93439769,0.00019725,2]
[341605311,1731022261214,125.06560231,0.00019725,2]
[341605314,1731022675541,267.4,0.00025665,120]
[341605315,1731022675565,206.62,0.00025665,120]
[341605317,1731022707910,153.37,0.00015342,2]
[341605321,1731022841999,150.0,0.0002021,2]
[341605322,1731023030932,200.19367748,0.00017002,2]
[341605324,1731023196996,206.83,0.00025248,120]
[341605325,1731023239093,-187.55937408,0.0002242,2]
[341605326,1731023239117,-5.49656536,0.00022498,2]
[341605327,1731023239146,-147.87343464,0.00022498,2]
[341605328,1731023239167,-607.5701573,0.00024402,2]
[341605330,1731023260805,173.52,0.00015342,2]
[341605334,1731023350109,-173.52,0.00021745,2]
[341605335,1731023353093,-3058.9,0.00024827,2]
[341605336,1731023359933,1204.89,0.00023292,2]
[341605337,1731023402047,300.0,0.00023,2]
[341605338,1731023413403,1601.17713681,0.00024643,2]
[341605339,1731023413426,1075.35286319,0.00024643,2]
[341605342,1731023431598,-500.0,0.00024932,2]
[341605344,1731023431609,-500.0,0.00024932,2]
[341605346,1731023431618,-150.0,0.00024986,2]
[341605347,1731023431628,-168.55,0.00025004,2]
[341605348,1731023431637,-150.99,0.00025004,2]
[341605349,1731023431647,-1887.476221,0.00025039,2]
[341605350,1731023431663,-789.053779,0.00025039,2]
[341605351,1731023431673,-500.0,0.00025068,7]
[341605352,1731023431683,-642.02249944,0.00025068,7]
[341605353,1731023431731,-57.97750056,0.00025068,7]
[341605354,1731023431742,-700.0,0.00025068,7]
[341605355,1731023431752,-7649.70370135,0.00025166,2]
[341605356,1731023431764,-536.83568415,0.00025166,2]
[341605357,1731023431971,-4357.6351038,0.00025166,2]
[341605358,1731023431983,-300.0,0.00025166,2]
[341605359,1731023431994,-12047.4755107,0.00025166,2]
[341605360,1731023432004,-200.0,0.00025171,2]
[341605361,1731023432014,-225.37,0.00025194,2]
[341605362,1731023432023,-159.33,0.00025196,2]
[341605363,1731023432033,-200.0,0.00025197,2]
[341605364,1731023432042,-1500.0,0.00025225,2]
[341605365,1731023432052,-250.0,0.00025227,2]
[341605366,1731023432062,-300.0,0.00025258,2]
[341605367,1731023432071,-165.46,0.00025259,2]
[341605368,1731023432081,-309.43,0.0002526,2]
[341605369,1731023432090,-176.0,0.00025287,2]
[341605370,1731023432100,-1631.26,0.00025302,2]
[341605371,1731023432110,-1000.0,0.00025317,2]
[341605372,1731023432119,-4660.06323871,0.00025318,2]
[341605373,1731023432131,-19239.93676129,0.00025318,2]
[341605374,1731023432141,-701.0,0.00025325,2]
[341605375,1731023432151,-250.0,0.0002533,2]
[341605376,1731023432160,-230.86,0.00025359,2]
[341605377,1731023432170,-2000.0,0.00025371,2]
[341605378,1731023432179,-3010.56,0.00025394,2]
[341605379,1731023432190,-2676.53,0.00025435,2]
[341605380,1731023432200,-500.0,0.00025448,2]
[341605381,1731023432209,-800.0,0.00025449,2]
[341605382,1731023432219,-373.85,0.00025463,2]
[341605383,1731023432229,-157.19,0.00025541,30]
[341605384,1731023432239,-1204.89,0.00025556,2]
[341605385,1731023432248,-181.57,0.00025772,2]
[341605386,1731023432257,-2676.53,0.00025831,2]
[341605387,1731023432267,-150.99586821,0.0002587,2]
[341605388,1731023432277,-700.0,0.0002589,7]
[341605389,1731023432287,-700.0,0.0002589,7]
[341605390,1731023432296,-2676.53,0.00026227,2]
[341605391,1731023432305,-207.71,0.0002632,2]
[341605392,1731023432316,-277.28,0.0002632,2]
[341605393,1731023432326,-277.28,0.00026334,2]
[341605394,1731023432335,-277.28,0.00026348,2]
[341605395,1731023432345,-277.28,0.00026362,2]
[341605396,1731023432355,-277.28,0.00026375,2]
[341605397,1731023432364,-277.28,0.00026389,2]
[341605398,1731023432374,-992.0,0.000264,2]
[341605399,1731023432383,-277.28,0.00026403,2]
[341605400,1731023432392,-277.28,0.00026417,2]
[341605401,1731023432402,-277.28,0.00026431,2]
[341605402,1731023432412,-277.28,0.00026445,2]
[341605403,1731023432421,-277.28,0.00026459,2]
[341605404,1731023432431,-277.28,0.00026472,2]
[341605405,1731023432441,-277.28,0.00026486,2]
[341605406,1731023432450,-277.28,0.000265,2]
[341605407,1731023432460,-277.28,0.00026514,2]
[341605408,1731023432469,-309.43,0.00026523,2]
[341605409,1731023432479,-277.28,0.00026528,2]
[341605410,1731023432488,-277.28,0.00026542,2]
[341605411,1731023432497,-277.28,0.00026556,2]
[341605412,1731023432507,-277.28,0.0002657,2]
[341605413,1731023432520,-277.28,0.00026583,2]
[341605414,1731023432530,-2676.53,0.00026623,2]
[341605415,1731023432539,-700.0,0.00026712,7]
[341605416,1731023432548,-700.0,0.00026712,7]
[341605417,1731023432558,-500.0,0.00026712,7]
[341605418,1731023432568,-200.0,0.000269,9]
[341605419,1731023432578,-1381.7876,0.00026997,2]
[341605420,1731023432588,-1000.0,0.00026997,2]
[341605421,1731023432598,-2676.53,0.00027019,2]
[341605422,1731023432607,-167.44,0.0002711,2]
[341605423,1731023432617,-150.110806,0.00027198,3]
[341605424,1731023432627,-5087.6,0.00027273,2]
[341605425,1731023432636,-7329.8179,0.00027297,2]
[341605426,1731023432645,-1000.0,0.00027297,2]
[341605427,1731023432655,-2500.0,0.00027297,2]
[341605428,1731023432664,-3821.95459522,0.00027297,2]
[341605429,1731023432673,-162.897244,0.00027297,2]
[341605430,1731023432683,-331.99681854,0.00027297,2]
[341605431,1731023432693,-150.110806,0.00027298,3]
[341605432,1731023432702,-425.51303077,0.00027299,2]
[341605433,1731023432711,-500.0,0.00027373,2]
[341605434,1731023432721,-500.0,0.00027373,2]
[341605435,1731023432732,-178.0793577,0.00027387,2]
[341605436,1731023432742,-500.0,0.00027396,2]
[341605437,1731023432752,-422.56424612,0.00027396,2]
[341605438,1731023432761,-500.0,0.00027396,2]
[341605439,1731023432770,-500.0,0.00027396,2]
[341605440,1731023432779,-500.0,0.00027396,2]
[341605441,1731023432789,-500.0,0.00027396,2]
[341605442,1731023432798,-500.0,0.00027397,2]
[341605443,1731023432807,-500.0,0.00027397,2]
[341605444,1731023432817,-500.0,0.00027397,2]
[341605445,1731023432826,-433.1326337,0.00027397,2]
[341605446,1731023432835,-500.0,0.00027397,2]
[341605447,1731023432845,-151.0,0.00027397,7]
[341605448,1731023432854,-151.0,0.00027397,7]
[341605449,1731023432863,-151.0,0.00027397,7]
[341605450,1731023432872,-151.0,0.00027397,7]
[341605451,1731023432881,-500.0,0.00027397,2]
[341605452,1731023432974,-500.0,0.00027397,2]
[341605453,1731023432983,-500.0,0.00027397,2]
[341605454,1731023432992,-500.0,0.00027397,2]
[341605455,1731023433002,-500.0,0.00027397,2]
[341605456,1731023433011,-464.87823253,0.00027397,2]
[341605457,1731023433020,-500.0,0.00027397,2]
[341605458,1731023433030,-335.02465198,0.00027397,2]
[341605459,1731023433039,-368.88919071,0.00027397,2]
[341605460,1731023433048,-500.0,0.00027397,2]
[341605461,1731023433059,-564.48309209,0.00027397,2]
[341605462,1731023433068,-500.0,0.00027397,2]
[341605463,1731023433079,-500.0,0.00027397,2]
[341605464,1731023433090,-603.68293317,0.00027397,2]
[341605465,1731023433100,-177.415875,0.00027397,2]
[341605466,1731023433109,-500.0,0.00027397,2]
[341605467,1731023433119,-500.0,0.00027397,2]
[341605468,1731023433128,-568.41,0.00027397,2]
[341605469,1731023433138,-153.008708,0.00027397,2]
[341605470,1731023433148,-500.0,0.00027397,2]
[341605471,1731023433158,-500.0,0.00027397,2]
[341605472,1731023433167,-500.0,0.00027397,2]
[341605473,1731023433177,-500.0,0.00027397,2]
[341605474,1731023433189,-500.0,0.00027397,2]
[341605475,1731023433204,-500.0,0.00027397,2]
[341605476,1731023433215,-500.0,0.00027397,2]
[341605477,1731023433225,-500.0,0.00027397,2]
[341605478,1731023433234,-500.0,0.00027397,2]
[341605479,1731023433244,-500.0,0.00027397,2]
[341605480,1731023433253,-500.0,0.00027397,2]
[341605481,1731023433263,-500.0,0.00027397,2]
[341605482,1731023433272,-500.0,0.00027397,2]
[341605483,1731023433282,-500.0,0.00027397,2]
[341605484,1731023433292,-500.0,0.00027397,2]
[341605485,1731023433302,-540.74,0.00027397,2]
[341605486,1731023433312,-508.74449713,0.00027397,2]
[341605487,1731023433322,-500.0,0.00027397,2]
[341605488,1731023433331,-500.0,0.00027397,2]
[341605489,1731023433341,-566.58,0.00027397,2]
[341605490,1731023433350,-500.0,0.00027397,2]
[341605491,1731023433360,-500.0,0.00027397,2]
[341605492,1731023433370,-500.0,0.00027397,2]
[341605493,1731023433380,-500.0,0.00027397,2]
[341605494,1731023433389,-500.0,0.00027397,2]
[341605495,1731023433399,-500.0,0.00027397,2]
[341605496,1731023433408,-500.0,0.00027397,2]
[341605497,1731023433417,-655.69,0.00027397,2]
[341605498,1731023433427,-500.0,0.00027397,2]
[341605499,1731023433441,-500.0,0.00027397,2]
[341605500,1731023433451,-500.0,0.00027397,2]
[341605501,1731023433461,-500.0,0.00027397,2]
[341605502,1731023433471,-500.0,0.00027397,2]
[341605503,1731023433480,-500.0,0.00027397,2]
[341605504,1731023433490,-500.0,0.00027397,2]
[341605505,1731023433500,-887.58,0.00027397,2]
[341605506,1731023433513,-500.0,0.00027397,2]
[341605507,1731023433523,-500.0,0.00027397,2]
[341605508,1731023433532,-500.0,0.00027397,2]
[341605509,1731023433542,-168.86062687,0.00027397,2]
[341605510,1731023433551,-500.0,0.00027397,2]
[341605511,1731023433561,-500.0,0.00027397,2]
[341605512,1731023433570,-500.0,0.00027397,2]
[341605513,1731023433580,-500.0,0.00027397,2]
[341605514,1731023433591,-500.0,0.00027397,2]
[341605515,1731023433600,-500.0,0.00027397,2]
[341605516,1731023433610,-500.0,0.00027397,2]
[341605517,1731023433619,-500.0,0.00027397,2]
[341605518,1731023433629,-500.0,0.00027397,2]
[341605519,1731023433638,-500.0,0.00027397,2]
[341605520,1731023433648,-500.0,0.00027397,2]
[341605521,1731023433657,-500.0,0.00027397,2]
[341605522,1731023433666,-509.81154594,0.00027397,2]
[341605523,1731023433676,-500.0,0.00027397,2]
[341605524,1731023433688,-364.62,0.00027397,2]
[341605525,1731023433697,-500.0,0.00027397,2]
[341605526,1731023433707,-500.0,0.00027397,2]
[341605527,1731023433716,-500.0,0.00027397,2]
[341605528,1731023433725,-500.0,0.00027397,2]
[341605529,1731023433735,-500.0,0.00027397,2]
[341605530,1731023433745,-500.0,0.00027397,2]
[341605531,1731023433754,-500.0,0.00027397,2]
[341605532,1731023433764,-597.4,0.00027397,2]
[341605533,1731023433773,-500.0,0.00027397,2]
[341605534,1731023433783,-500.0,0.00027397,2]
[341605535,1731023433793,-500.0,0.00027397,2]
[341605536,1731023433803,-265.09341164,0.00027397,2]
[341605537,1731023433813,-500.0,0.00027397,2]
[341605538,1731023433822,-500.0,0.00027397,2]
[341605539,1731023433832,-793.59,0.00027397,2]
[341605540,1731023433841,-500.0,0.00027397,2]
[341605541,1731023433851,-500.0,0.00027397,2]
[341605542,1731023433861,-500.0,0.00027397,2]
[341605543,1731023433871,-500.0,0.00027397,2]
[341605544,1731023433881,-500.0,0.00027397,2]
[341605545,1731023433891,-500.0,0.00027397,2]
[341605546,1731023433900,-500.0,0.00027397,2]
[341605547,1731023433910,-500.0,0.00027397,2]
[341605548,1731023433919,-500.0,0.00027397,2]
[341605549,1731023433929,-500.0,0.00027397,2]
[341605550,1731023433940,-500.0,0.00027397,2]
[341605551,1731023433949,-500.0,0.00027397,2]
[341605552,1731023433958,-500.0,0.00027397,2]
[341605553,1731023433967,-500.0,0.00027397,2]
[341605554,1731023433977,-500.0,0.00027397,2]
[341605555,1731023433986,-500.0,0.00027397,2]
[341605556,1731023433996,-470.66535986,0.00027397,2]
[341605557,1731023434005,-500.0,0.00027397,2]
[341605558,1731023434015,-500.0,0.00027397,2]
[341605559,1731023434024,-500.0,0.00027397,2]
[341605560,1731023434033,-500.0,0.00027397,2]
[341605561,1731023434043,-637.01518551,0.00027397,2]
[341605562,1731023434052,-500.0,0.00027397,2]
[341605563,1731023434062,-347.88,0.00027397,2]
[341605564,1731023434071,-500.0,0.00027397,2]
[341605565,1731023434080,-705.18,0.00027397,2]
[341605566,1731023434089,-500.0,0.00027397,2]
[341605567,1731023434098,-485.70677196,0.00027397,2]
[341605568,1731023434107,-500.0,0.00027397,2]
[341605569,1731023434116,-500.0,0.00027397,2]
[341605570,1731023434126,-597.29,0.00027397,2]
[341605571,1731023434135,-500.0,0.00027397,2]
[341605572,1731023434145,-500.0,0.00027397,2]
[341605573,1731023434154,-500.0,0.00027397,2]
[341605574,1731023434164,-500.0,0.00027397,2]
[341605575,1731023434173,-500.0,0.00027397,2]
[341605576,1731023434183,-500.0,0.00027397,2]
[341605577,1731023434192,-500.0,0.00027397,2]
[341605578,1731023434202,-500.0,0.00027397,2]
[341605579,1731023434211,-500.0,0.00027397,2]
[341605580,1731023434221,-500.0,0.00027397,2]
[341605581,1731023434230,-500.0,0.00027397,2]
[341605582,1731023434239,-500.0,0.00027397,2]
[341605583,1731023434248,-500.0,0.00027397,2]
[341605584,1731023434257,-500.0,0.00027397,2]
[341605585,1731023434267,-598.95,0.00027397,2]
[341605586,1731023434275,-500.0,0.00027397,2]
[341605587,1731023434285,-500.0,0.00027397,2]
[341605588,1731023434294,-500.0,0.00027397,2]
[341605589,1731023434303,-500.0,0.00027397,2]
[341605590,1731023434312,-500.0,0.00027397,2]
[341605591,1731023434322,-500.0,0.00027397,2]
[341605592,1731023434331,-500.0,0.00027397,2]
[341605593,1731023434340,-500.0,0.00027397,2]
[341605594,1731023434350,-500.0,0.00027397,2]
[341605595,1731023434359,-500.0,0.00027397,2]
[341605596,1731023434369,-500.0,0.00027397,2]
[341605597,1731023434378,-500.0,0.00027397,2]
[341605598,1731023434388,-500.0,0.00027397,2]
[341605599,1731023434397,-500.0,0.00027397,2]
[341605600,1731023434407,-500.0,0.00027397,2]
[341605601,1731023434416,-500.0,0.00027397,2]
[341605602,1731023434425,-500.0,0.00027397,2]
[341605603,1731023434436,-500.0,0.00027397,2]
[341605604,1731023434445,-500.0,0.00027397,2]
[341605605,1731023434454,-500.0,0.00027397,2]
[341605606,1731023434464,-500.0,0.00027397,2]
[341605607,1731023434473,-500.0,0.00027397,2]
[341605608,1731023434483,-500.0,0.00027397,2]
[341605609,1731023434492,-500.0,0.00027397,2]
[341605610,1731023434501,-500.0,0.00027397,2]
[341605611,1731023434512,-500.0,0.00027397,2]
[341605612,1731023434523,-500.0,0.00027397,2]
[341605613,1731023434533,-500.0,0.00027397,2]
[341605614,1731023434542,-500.0,0.00027397,2]
[341605615,1731023434552,-500.0,0.00027397,2]
[341605616,1731023434562,-500.0,0.00027397,2]
[341605617,1731023434571,-500.0,0.00027397,2]
[341605618,1731023434581,-500.0,0.00027397,2]
[341605619,1731023434591,-500.0,0.00027397,2]
[341605620,1731023434602,-500.0,0.00027397,2]
[341605621,1731023434611,-500.0,0.00027397,2]
[341605622,1731023434620,-501.47832452,0.00027397,2]
[341605623,1731023434629,-500.0,0.00027397,2]
[341605624,1731023434639,-500.0,0.00027397,2]
[341605625,1731023434648,-500.0,0.00027397,2]
[341605626,1731023434657,-192.8687611,0.00027397,2]
[341605627,1731023434666,-544.55926537,0.00027397,2]
[341605628,1731023434675,-500.0,0.00027397,2]
[341605629,1731023434686,-500.0,0.00027397,2]
[341605630,1731023434695,-500.0,0.00027397,2]
[341605631,1731023434704,-500.0,0.00027397,2]
[341605632,1731023434714,-500.0,0.00027397,2]
[341605633,1731023434724,-501.72,0.00027397,2]
[341605634,1731023434733,-500.0,0.00027397,2]
[341605635,1731023434743,-500.0,0.00027397,2]
[341605636,1731023434753,-500.0,0.00027397,2]
[341605637,1731023434762,-500.0,0.00027397,2]
[341605638,1731023434771,-519.18223851,0.00027397,2]
[341605639,1731023434780,-500.0,0.00027397,2]
[341605640,1731023434789,-500.0,0.00027397,2]
[341605641,1731023434798,-500.0,0.00027397,2]
[341605642,1731023434807,-500.0,0.00027397,2]
[341605643,1731023434817,-500.0,0.00027397,2]
[341605644,1731023434828,-500.0,0.00027397,2]
[341605645,1731023434838,-500.0,0.00027397,2]
[341605646,1731023434847,-500.0,0.00027397,2]
[341605647,1731023434856,-500.0,0.00027397,2]
[341605648,1731023434865,-500.0,0.00027397,2]
[341605649,1731023434877,-500.0,0.00027397,2]
[341605650,1731023434886,-500.0,0.00027397,2]
[341605651,1731023434897,-500.0,0.00027397,2]
[341605652,1731023434907,-500.0,0.00027397,2]
[341605653,1731023434916,-500.0,0.00027397,2]
[341605654,1731023434927,-500.0,0.00027397,2]
[341605655,1731023434939,-500.0,0.00027397,2]
[341605656,1731023434948,-500.0,0.00027397,2]
[341605657,1731023434958,-576.29,0.00027397,2]
[341605658,1731023434967,-500.0,0.00027397,2]
[341605659,1731023434976,-500.0,0.00027397,2]
[341605660,1731023434985,-500.0,0.00027397,2]
[341605661,1731023434996,-500.0,0.00027397,2]
[341605662,1731023435005,-700.0,0.00027397,2]
[341605663,1731023435014,-500.0,0.00027397,2]
[341605664,1731023435024,-500.0,0.00027397,2]
[341605665,1731023435033,-500.0,0.00027397,2]
[341605666,1731023435043,-500.0,0.00027397,2]
[341605667,1731023435052,-689.5,0.00027397,2]
[341605668,1731023435061,-543.71,0.00027397,2]
[341605669,1731023435070,-792.33,0.00027397,2]
[341605670,1731023435080,-500.0,0.00027397,2]
[341605671,1731023435089,-531.1,0.00027397,2]
[341605672,1731023435098,-500.0,0.00027397,2]
[341605673,1731023435107,-524.50945757,0.00027397,2]
[341605674,1731023435116,-500.0,0.00027397,2]
[341605675,1731023435126,-500.0,0.00027397,2]
[341605676,1731023435135,-500.0,0.00027397,2]
[341605677,1731023435144,-500.0,0.00027397,2]
[341605678,1731023435154,-500.0,0.00027397,2]
[341605679,1731023435164,-500.0,0.00027397,2]
[341605680,1731023435173,-500.0,0.00027397,2]
[341605681,1731023435185,-500.0,0.00027397,2]
[341605682,1731023435195,-500.0,0.00027397,2]
[341605683,1731023435204,-500.0,0.00027397,2]
[341605684,1731023435214,-500.0,0.00027397,2]
[341605685,1731023435223,-536.7,0.00027397,2]
[341605686,1731023435232,-500.0,0.00027397,2]
[341605687,1731023435242,-505.61149781,0.00027397,2]
[341605688,1731023435252,-500.0,0.00027397,2]
[341605689,1731023435261,-668.89,0.00027397,2]
[341605690,1731023435271,-500.0,0.00027397,2]
[341605691,1731023435280,-500.0,0.00027397,2]
[341605692,1731023435290,-500.0,0.00027397,2]
[341605693,1731023435299,-500.0,0.00027397,2]
[341605694,1731023435310,-500.0,0.00027397,2]
[341605695,1731023435319,-500.0,0.00027397,2]
[341605696,1731023435329,-679.93,0.00027397,2]
[341605697,1731023435339,-500.0,0.00027397,2]
[341605698,1731023435348,-500.0,0.00027397,2]
[341605699,1731023435357,-500.0,0.00027397,2]
[341605700,1731023435367,-500.0,0.00027397,2]
[341605701,1731023435376,-500.0,0.00027397,2]
[341605702,1731023435386,-500.0,0.00027397,2]
[341605703,1731023435395,-500.0,0.00027397,2]
[341605704,1731023435404,-500.0,0.00027397,2]
[341605705,1731023435414,-500.0,0.00027397,2]
[341605706,1731023435424,-500.0,0.00027397,2]
[341605707,1731023435436,-500.0,0.00027397,2]
[341605708,1731023435445,-500.0,0.00027397,2]
[341605709,1731023435455,-500.0,0.00027397,2]
[341605710,1731023435464,-500.0,0.00027397,2]
[341605711,1731023435473,-500.0,0.00027397,2]
[341605712,1731023435482,-500.0,0.00027397,2]
[341605713,1731023435492,-500.0,0.00027397,2]
[341605714,1731023435502,-500.0,0.00027397,2]
[341605715,1731023435513,-500.0,0.00027397,2]
[341605716,1731023435523,-500.0,0.00027397,2]
[341605717,1731023435533,-500.0,0.00027397,2]
[341605718,1731023435542,-671.9,0.00027397,2]
[341605719,1731023435553,-548.45630875,0.00027397,2]
[341605720,1731023435563,-500.0,0.00027397,2]
[341605721,1731023435572,-500.0,0.00027397,2]
[341605722,1731023435582,-500.0,0.00027397,2]
[341605723,1731023435593,-523.59,0.00027397,2]
[341605724,1731023435603,-469.63643911,0.00027397,2]
[341605725,1731023435612,-500.0,0.00027397,2]
[341605726,1731023435622,-715.21,0.00027397,2]
[341605727,1731023435631,-500.0,0.00027397,2]
[341605728,1731023435641,-500.0,0.00027397,2]
[341605729,1731023435651,-500.0,0.00027397,2]
[341605730,1731023435661,-500.0,0.00027397,2]
[341605731,1731023435670,-500.0,0.00027397,2]
[341605732,1731023435680,-500.0,0.00027397,2]
[341605733,1731023435692,-500.0,0.00027397,2]
[341605734,1731023435701,-506.00089248,0.00027397,2]
[341605735,1731023435711,-523.8566116,0.00027397,2]
[341605736,1731023435721,-1173.43,0.00027397,2]
[341605737,1731023435730,-500.0,0.00027397,2]
[341605738,1731023435740,-500.0,0.00027397,2]
[341605739,1731023435750,-500.0,0.00027397,2]
[341605740,1731023435759,-500.0,0.00027397,2]
[341605741,1731023435768,-500.0,0.00027397,2]
[341605742,1731023435779,-1549.83,0.00027397,2]
[341605743,1731023435789,-500.0,0.00027397,2]
[341605744,1731023435798,-500.0,0.00027397,2]
[341605745,1731023435808,-500.0,0.00027397,2]
[341605746,1731023435818,-524.18826683,0.00027397,2]
[341605747,1731023435827,-500.0,0.00027397,2]
[341605748,1731023435837,-786.91,0.00027397,2]
[341605749,1731023435846,-500.0,0.00027397,2]
[341605750,1731023435855,-500.0,0.00027397,2]
[341605751,1731023435864,-500.0,0.00027397,2]
[341605752,1731023435873,-510.74383598,0.00027397,2]
[341605753,1731023435883,-500.0,0.00027397,2]
[341605754,1731023435892,-500.0,0.00027397,2]
[341605755,1731023435901,-566.26898682,0.00027397,2]
[341605756,1731023435911,-519.16003673,0.00027397,2]
[341605757,1731023435920,-500.0,0.00027397,2]
[341605758,1731023435929,-750.77,0.00027397,2]
[341605759,1731023435940,-500.0,0.00027397,2]
[341605760,1731023435950,-500.0,0.00027397,2]
[341605761,1731023435959,-500.0,0.00027397,2]
[341605762,1731023435969,-500.0,0.00027397,2]
[341605763,1731023435978,-500.0,0.00027397,2]
[341605764,1731023435987,-500.0,0.00027397,2]
[341605765,1731023435996,-502.29816263,0.00027397,2]
[341605766,1731023436006,-500.0,0.00027397,2]
[341605767,1731023436015,-500.0,0.00027397,2]
[341605768,1731023436024,-500.0,0.00027397,2]
[341605769,1731023436034,-716.83,0.00027397,2]
[341605770,1731023436043,-500.0,0.00027397,2]
[341605771,1731023436053,-500.0,0.00027397,2]
[341605772,1731023436062,-500.0,0.00027397,2]
[341605773,1731023436072,-500.0,0.00027397,2]
[341605774,1731023436082,-500.0,0.00027397,2]
[341605775,1731023436091,-533.32793726,0.00027397,2]
[341605776,1731023436101,-542.87,0.00027397,2]
[341605777,1731023436110,-500.0,0.00027397,2]
[341605778,1731023436119,-500.0,0.00027397,2]
[341605779,1731023436129,-500.0,0.00027397,2]
[341605780,1731023436139,-500.0,0.00027397,2]
[341605781,1731023436148,-500.0,0.00027397,2]
[341605782,1731023436158,-500.0,0.00027397,2]
[341605783,1731023436167,-530.54,0.00027397,2]
[341605784,1731023436177,-566.21,0.00027397,2]
[341605785,1731023436188,-636.79,0.00027397,2]
[341605786,1731023436198,-820.52071332,0.00027397,10]
[341605787,1731023436207,-500.0,0.00027397,2]
[341605788,1731023436217,-500.0,0.00027397,2]
[341605789,1731023436226,-500.0,0.00027397,2]
[341605790,1731023436236,-500.0,0.00027397,2]
[341605791,1731023436246,-742.15,0.00027397,2]
[341605792,1731023436255,-500.0,0.00027397,2]
[341605793,1731023436265,-500.0,0.00027397,2]
[341605794,1731023436274,-500.0,0.00027397,2]
[341605795,1731023436286,-500.0,0.00027397,2]
[341605796,1731023436296,-500.0,0.00027397,2]
[341605797,1731023436305,-500.0,0.00027397,2]
[341605798,1731023436315,-500.0,0.00027397,2]
[341605799,1731023436324,-500.0,0.00027397,2]
[341605800,1731023436333,-446.50584306,0.00027397,2]
[341605801,1731023436343,-500.0,0.00027397,2]
[341605802,1731023436352,-500.0,0.00027397,2]
[341605803,1731023436362,-500.0,0.00027397,2]
[341605804,1731023436372,-500.0,0.00027397,2]
[341605805,1731023436381,-500.0,0.00027397,2]
[341605806,1731023436390,-500.0,0.00027397,2]
[341605807,1731023436401,-500.0,0.00027397,2]
[341605808,1731023436411,-500.0,0.00027397,2]
[341605809,1731023436420,-500.0,0.00027397,2]
[341605810,1731023436429,-500.0,0.00027397,2]
[341605811,1731023436442,-539.63575592,0.00027397,2]
[341605812,1731023436452,-500.0,0.00027397,2]